Workbook

Sheet Лист1
A1: Школа | C1: МБОУ Шаршадинская НОШ | F1: Утвердил: | G1: должность | H1: директор
A2: Типовое примерное меню приготавливаемых блюд | G2: фамилия | H2: Ахметшина А.А.
A3: Возрастная категория | E3: 7-11 лет | G3: дата | H3: 15 | I3: 1 | J3: 2026
H4: день | I4: месяц | J4: год
A5: Неделя | B5: День недели | C5: Прием пищи | D5: Раздел меню | E5: Блюда | F5: Выход, г | G5: Белки | H5: Жиры | I5: Углеводы | J5: Калорийность | K5: № рецептуры
A6: 1 | B6: 1 | C6: Завтрак | D6: гор.блюдо | E6: Каша пшенная вязкая с котлетами "Татарские" с соусом томатным | F6: 250 | G6: 12.81 | H6: 14.59 | I6: 33.43 | J6: 316.44 | K6: 268/2015 173/2017
D7: гор.блюдо
D8: гор.напиток | E8: Напиток из шиповника | F8: 200 | G8: 0.670 | H8: 0.270 | I8: 18.300 | J8: 78.00 | K8: 496/2021
D9: хлеб | E9: Хлеб пшен/хлеб ржан | F9: 50 | G9: 3.28 | H9: 0.44 | I9: 23.76 | J9: 115.00 | K9: 1/2017
D10: фрукты
D11: салат | E11: Салат картофельный с огурцами солеными | F11: 60 | G11: 1.26 | H11: 3.78 | I11: 4.92 | J11: 58.8 | K11: 43/2021
D13: итого | F13: =SUM(F6:F12) -> 560 | G13: =SUM(G6:G12) -> 18.02 | H13: 19.08 | I13: 80.410 | J13: 568.24
A14: =A6 -> 1 | B14: =B6 -> 1 | C14: Обед | D14: закуска
D15: 1 блюдо
D16: 2 блюдо
D17: гарнир
D18: напиток
D19: хлеб бел.
D20: хлеб черн.
D23: итого | F23: =SUM(F14:F22) -> 0 | G23: =SUM(G14:G22) -> 0 | H23: 0 | I23: 0 | J23: 0
A24: =A6 -> 1 | B24: =B6 -> 1 | C24: Итого за день: | F24: =F13+F23 -> 560 | G24: =G13+G23 -> 18.02 | H24: 19.08 | I24: 80.410 | J24: 568.24
A25: 1 | B25: 2 | C25: Завтрак | D25: гор.блюдо | E25: Рагу из птицы | F25: 200 | G25: 15.100 | H25: 13.580 | I25: 17.400 | J25: 252.600 | K25: 289/2017
D27: гор.напиток | E27: Чай с лимоном (полусладкий) | F27: 217 | G27: 0.084 | H27: 0.012 | I27: 15.185 | J27: 62 | K27: 377/2017
D28: хлеб | E28: Хлеб пшен/хлеб ржан | F28: 50 | G28: 3.28 | H28: 0.44 | I28: 23.76 | J28: 115.00 | K28: 1/2017
D29: фрукты
D30: салат | E30: Салат из свеклы отварной | F30: 60 | G30: 0.85 | H30: 3.65 | I30: 11.6 | J30: 56 | K30: 52/2017
D32: итого | F32: =SUM(F25:F31) -> 527 | G32: =SUM(G25:G31) -> 19.314 | H32: =SUM(H25:H31) -> 17.682 | I32: =SUM(I25:I31) -> 67.945 | J32: =SUM(J25:J31) -> 485.600
A33: =A25 -> 1 | B33: =B25 -> 2 | C33: Обед | D33: закуска
D34: 1 блюдо
D35: 2 блюдо
D36: гарнир
D37: напиток
D38: хлеб бел.
D39: хлеб черн.
D42: итого | F42: =SUM(F33:F41) -> 0 | G42: =SUM(G33:G41) -> 0 | H42: =SUM(H33:H41) -> 0 | I42: =SUM(I33:I41) -> 0 | J42: =SUM(J33:J41) -> 0
A43: =A25 -> 1 | B43: =B25 -> 2 | C43: Итого за день: | F43: =F32+F42 -> 527 | G43: =G32+G42 -> 19.314 | H43: =H32+H42 -> 17.682 | I43: =I32+I42 -> 67.945 | J43: =J32+J42 -> 485.600
A44: 1 | B44: 3 | C44: Завтрак | D44: гор.блюдо | E44: Макароны отварные с фрикадельками "Особые" с соусом томатным | F44: 250 | G44: 17.640 | H44: 23.508 | I44: 38.430 | J44: 448.21 | K44: ТТК-9 203/2017
D45: гор.блюдо
D46: гор.напиток | E46: Напиток из свежих яблок | F46: 200 | G46: 0.200 | H46: 0.200 | I46: 11.100 | J46: 76.30 | K46: 342/2017
D47: хлеб | E47: Хлеб пшен/хлеб ржан | F47: 50 | G47: 3.28 | H47: 0.44 | I47: 23.76 | J47: 115.00 | K47: 1/2017
D48: фрукты
D49: салат | E49: Салат картофельный с зеленым горошком | F49: 60 | G49: 1.5 | H49: 3.78 | I49: 4.98 | J49: 60 | K49: 42/2021
D51: итого | F51: =SUM(F44:F50) -> 560 | G51: =SUM(G44:G50) -> 22.620 | H51: =SUM(H44:H50) -> 27.928 | I51: =SUM(I44:I50) -> 78.270 | J51: =SUM(J44:J50) -> 699.510
A52: =A44 -> 1 | B52: =B44 -> 3 | C52: Обед | D52: закуска
D53: 1 блюдо
D54: 2 блюдо
D55: гарнир
D56: напиток
D57: хлеб бел.
D58: хлеб черн.
D61: итого | F61: =SUM(F52:F60) -> 0 | G61: =SUM(G52:G60) -> 0 | H61: =SUM(H52:H60) -> 0 | I61: =SUM(I52:I60) -> 0 | J61: =SUM(J52:J60) -> 0
A62: =A44 -> 1 | B62: =B44 -> 3 | C62: Итого за день: | F62: =F51+F61 -> 560 | G62: =G51+G61 -> 22.620 | H62: =H51+H61 -> 27.928 | I62: =I51+I61 -> 78.270 | J62: =J51+J61 -> 699.510
A63: 1 | B63: 4 | C63: Завтрак | D63: гор.блюдо | E63: Рис отварной и Биточки "Рябушка" с соусом сметанным | F63: 250 | G63: 14.070 | H63: 17.680 | I63: 49.190 | J63: 412.2 | K63: 295/2015 304/2017
D64: гор.блюдо
D65: гор.напиток | E65: Чай полусладкий | F65: 200 | G65: 0.200 | H65: 0.000 | I65: 13.700 | J65: 56.00 | K65: 457/2021
D66: хлеб | E66: Хлеб пшен/хлеб ржан | F66: 50 | G66: 3.28 | H66: 0.44 | I66: 23.76 | J66: 115.00 | K66: 1/2017
D67: фрукты | E67: Плоды и ягоды свежие | F67: 100 | G67: 0.400 | H67: 0.400 | I67: 7.350 | J67: 47.00 | K67: 338/2017
D68: салат
D70: итого | F70: =SUM(F63:F69) -> 600 | G70: =SUM(G63:G69) -> 17.95 | H70: =SUM(H63:H69) -> 18.52 | I70: =SUM(I63:I69) -> 94.00 | J70: =SUM(J63:J69) -> 630.20
A71: =A63 -> 1 | B71: =B63 -> 4 | C71: Обед | D71: закуска
D72: 1 блюдо
D73: 2 блюдо
D74: гарнир
D75: напиток
D76: хлеб бел.
D77: хлеб черн.
D80: итого | F80: =SUM(F71:F79) -> 0 | G80: =SUM(G71:G79) -> 0 | H80: =SUM(H71:H79) -> 0 | I80: =SUM(I71:I79) -> 0 | J80: =SUM(J71:J79) -> 0
A81: =A63 -> 1 | B81: =B63 -> 4 | C81: Итого за день: | F81: =F70+F80 -> 600 | G81: =G70+G80 -> 17.95 | H81: =H70+H80 -> 18.52 | I81: =I70+I80 -> 94 | J81: =J70+J80 -> 630.2
A82: 1 | B82: 5 | C82: Завтрак | D82: гор.блюдо | E82: Жаркое по-домашнему с мясом птицы | F82: 200 | G82: 18.520 | H82: 20.700 | I82: 18.950 | J82: 337.14 | K82: 259/2017
D84: гор.напиток | E84: Чай полусладкий с молоком | F84: 200 | G84: 1.520 | H84: 1.350 | I84: 15.900 | J84: 81.00 | K84: 460/2021
D85: хлеб | E85: Хлеб пшен/хлеб ржан | F85: 50 | G85: 3.28 | H85: 0.44 | I85: 23.76 | J85: 115.00 | K85: 1/2017
D86: фрукты
D87: салат | E87: Салат "Пестрый" | F87: 60 | G87: 0.6 | H87: 2.7 | I87: 8.4 | J87: 52 | K87: 28/2011
D89: итого | F89: =SUM(F82:F88) -> 510 | G89: =SUM(G82:G88) -> 23.920 | H89: =SUM(H82:H88) -> 25.190 | I89: =SUM(I82:I88) -> 67.010 | J89: =SUM(J82:J88) -> 585.14
A90: =A82 -> 1 | B90: =B82 -> 5 | C90: Обед | D90: закуска
D91: 1 блюдо
D92: 2 блюдо
D93: гарнир
D94: напиток
D95: хлеб бел.
D96: хлеб черн.
D99: итого | F99: =SUM(F90:F98) -> 0 | G99: =SUM(G90:G98) -> 0 | H99: =SUM(H90:H98) -> 0 | I99: =SUM(I90:I98) -> 0 | J99: =SUM(J90:J98) -> 0
A100: =A82 -> 1 | B100: =B82 -> 5 | C100: Итого за день: | F100: =F89+F99 -> 510 | G100: =G89+G99 -> 23.920 | H100: =H89+H99 -> 25.190 | I100: =I89+I99 -> 67.010 | J100: =J89+J99 -> 585.14
A101: 1 | B101: 6 | C101: Завтрак | D101: гор.блюдо | E101: Котлеты Школьные с соусом сметанным с отварными макаронами | F101: 250 | G101: 16.57 | H101: 12.718 | I101: 38.48 | J101: 346.75 | K101: 347/2021 203/2017
D102: гор.блюдо
D103: гор.напиток | E103: Чай с лимоном (полусладкий) | F103: 217 | G103: 0.084 | H103: 0.012 | I103: 15.185 | J103: 62 | K103: 377/2017
D104: хлеб | E104: Хлеб пшен/хлеб ржан | F104: 50 | G104: 3.28 | H104: 0.44 | I104: 23.76 | J104: 115.00 | K104: 1/2017
D105: фрукты
D106: салат | E106: Винегрет овощной | F106: 60 | G106: 0.96 | H106: 3.72 | I106: 3.96 | J106: 52.8 | K106: 47/2021
D108: итого | F108: =SUM(F101:F107) -> 577 | G108: =SUM(G101:G107) -> 20.894 | H108: 16.89 | I108: 81.385 | J108: 576.55
A109: =A101 -> 1 | B109: =B101 -> 6 | C109: Обед | D109: закуска
D110: 1 блюдо
D111: 2 блюдо
D112: гарнир
D113: напиток
D114: хлеб бел.
D115: хлеб черн.
D118: итого | F118: =SUM(F109:F117) -> 0 | G118: =SUM(G109:G117) -> 0 | H118: 0 | I118: 0 | J118: 0
A119: =A101 -> 1 | B119: =B101 -> 6 | C119: Итого за день: | F119: =F108+F118 -> 577 | G119: =G108+G118 -> 20.894 | H119: 16.89 | I119: 81.385 | J119: 576.55
A120: 2 | B120: 1 | C120: Завтрак | D120: гор.блюдо | E120: Каша гречневая вязкая c маслом сливочным и Фрикадельки "Особые" с соусом томатным | F120: 250 | G120: 19.202 | H120: 28.064 | I120: 43.930 | J120: 431.21 | K120: 173/2017 ТТК-9
D121: гор.блюдо
D122: гор.напиток | E122: Чай полусладкий | F122: 200 | G122: 0.200 | H122: 0.000 | I122: 13.700 | J122: 56.00 | K122: 457/2021
D123: хлеб | E123: Хлеб пшен/хлеб ржан | F123: 50 | G123: 3.28 | H123: 0.44 | I123: 23.76 | J123: 115.00 | K123: 1/2017
D124: фрукты | E124: Плоды и ягоды свежие | F124: 100 | G124: 0.400 | H124: 0.400 | I124: 7.350 | J124: 47.00 | K124: 338/2017
D127: итого | F127: =SUM(F120:F126) -> 600 | G127: =SUM(G120:G126) -> 23.082 | H127: 28.904 | I127: 88.74 | J127: 649.21
A128: =A120 -> 2 | B128: =B120 -> 1 | C128: Обед | D128: закуска
D129: 1 блюдо
D130: 2 блюдо
D131: гарнир
D132: напиток
D133: хлеб бел.
D134: хлеб черн.
D137: итого | F137: =SUM(F128:F136) -> 0 | G137: =SUM(G128:G136) -> 0 | H137: 0 | I137: 0 | J137: 0
A138: =A120 -> 2 | B138: =B120 -> 1 | C138: Итого за день: | F138: =F127+F137 -> 600 | G138: =G127+G137 -> 23.082 | H138: =H127+H137 -> 28.904 | I138: =I127+I137 -> 88.74 | J138: =J127+J137 -> 649.21
A139: 2 | B139: 2 | C139: Завтрак | D139: гор.блюдо | E139: Плов из птицы | F139: 200 | G139: 13.310 | H139: 12.410 | I139: 22.340 | J139: 254.290 | K139: 291/2017
D141: гор.напиток | E141: Чай с лимоном (полусладкий) | F141: 217 | G141: 0.084 | H141: 0.012 | I141: 15.185 | J141: 62 | K141: 377/2017
D142: хлеб | E142: Хлеб пшен/хлеб ржан | F142: 50 | G142: 3.28 | H142: 0.44 | I142: 23.76 | J142: 115.00 | K142: 1/2017
D143: фрукты
D144: салат | E144: салат из свеклы отварной | F144: 60 | G144: 0.85 | H144: 3.65 | I144: 11.6 | J144: 56 | K144: 52/2017
D146: итого | F146: =SUM(F139:F145) -> 527 | G146: =SUM(G139:G145) -> 17.52 | H146: 16.512 | I146: 72.885 | J146: 487.29
A147: =A139 -> 2 | B147: =B139 -> 2 | C147: Обед | D147: закуска
D148: 1 блюдо
D149: 2 блюдо
D150: гарнир
D151: напиток
D152: хлеб бел.
D153: хлеб черн.
D156: итого | F156: =SUM(F147:F155) -> 0 | G156: =SUM(G147:G155) -> 0 | H156: 0 | I156: 0 | J156: 0
A157: =A139 -> 2 | B157: =B139 -> 2 | C157: Итого за день: | F157: =F146+F156 -> 527 | G157: =G146+G156 -> 17.524 | H157: =H146+H156 -> 16.512 | I157: =I146+I156 -> 72.885 | J157: =J146+J156 -> 487.29
A158: 2 | B158: 3 | C158: Завтрак | D158: гор.блюдо | E158: Картофельное пюре с маслом сливочным с Биточками рыбными «Морячка» с соусом сметанным с луком | F158: 250 | G158: 14.09 | H158: 12.52 | I158: 30.320 | J158: 294.6 | K158: 312/2017 ТТК № 6
D159: гор.блюдо
D160: гор.напиток | E160: Кофейный напиток | F160: 200 | G160: 3.600 | H160: 2.670 | I160: 29.200 | J160: 155.00 | K160: 465/2021
D161: хлеб | E161: Хлеб пшен/хлеб ржан | F161: 50 | G161: 3.28 | H161: 0.44 | I161: 23.76 | J161: 115.00 | K161: 1/2017
D162: фрукты
D163: салат | E163: Салат "Пестрый" | F163: 60 | G163: 0.600 | H163: 2.700 | I163: 3.300 | J163: 8.400 | K163: 28/2011
D165: итого | F165: =SUM(F158:F164) -> 560 | G165: =SUM(G158:G164) -> 21.570 | H165: 18.330 | I165: 86.580 | J165: 573.000
A166: =A158 -> 2 | B166: =B158 -> 3 | C166: Обед | D166: закуска
D167: 1 блюдо
D168: 2 блюдо
D169: гарнир
D170: напиток
D171: хлеб бел.
D172: хлеб черн.
D175: итого | F175: =SUM(F166:F174) -> 0 | G175: =SUM(G166:G174) -> 0 | H175: 0 | I175: 0 | J175: 0
A176: =A158 -> 2 | B176: =B158 -> 3 | C176: Итого за день: | F176: =F165+F175 -> 560 | G176: =G165+G175 -> 21.570 | H176: =H165+H175 -> 18.330 | I176: =I165+I175 -> 86.580 | J176: =J165+J175 -> 573.000
A177: 2 | B177: 4 | C177: Завтрак | D177: гор.блюдо | E177: Макароны отварные с маслом и Котлеты "Крестьянские" с соусом томатным | F177: 250 | G177: 21.860 | H177: 22.400 | I177: 48.930 | J177: 484.35 | K177: 203/2017 34/2015
D178: гор.блюдо
D179: гор.напиток | E179: Чай с лимоном (полусладкий) | F179: 217 | G179: 0.084 | H179: 0.012 | I179: 15.185 | J179: 62.00 | K179: 377/2017
D180: хлеб | E180: Хлеб пшен/хлеб ржан | F180: 50 | G180: 3.28 | H180: 0.44 | I180: 23.76 | J180: 115.00 | K180: 1/2017
D181: фрукты
D182: салат | E182: Салат картофельный с огурцами солеными | F182: 60 | G182: 1.260 | H182: 3.78 | I182: 4.920 | J182: 58.80 | K182: 43/2021
D184: итого | F184: =SUM(F177:F183) -> 577 | G184: =SUM(G177:G183) -> 26.48 | H184: =SUM(H177:H182) -> 26.63 | I184: 92.795 | J184: 720.15
A185: =A177 -> 2 | B185: =B177 -> 4 | C185: Обед | D185: закуска
D186: 1 блюдо
D187: 2 блюдо
D188: гарнир
D189: напиток
D190: хлеб бел.
D191: хлеб черн.
D194: итого | F194: =SUM(F185:F193) -> 0 | G194: =SUM(G185:G193) -> 0 | H194: 0 | I194: 0 | J194: 0
A195: =A177 -> 2 | B195: =B177 -> 4 | C195: Итого за день: | F195: =F184+F194 -> 577 | G195: =G184+G194 -> 26.484 | H195: =H184+H194 -> 26.632 | I195: =I184+I194 -> 92.795 | J195: =J184+J194 -> 720.15
A196: 2 | B196: 5 | C196: Завтрак | D196: гор.блюдо | E196: Рис отварной и Котлеты "Любимые"с соусом сметанным с томатом | F196: 250 | G196: 13.900 | H196: 15.920 | I196: 51.080 | J196: 400 | K196: 304/2017 294/2015
D197: гор.блюдо
D198: гор.напиток | E198: Чай полусладкий | F198: 207 | G198: 0.200 | H198: 0.000 | I198: 13.700 | J198: 56.00 | K198: 457/2021
D199: хлеб | E199: Хлеб пшен/хлеб ржан | F199: 50 | G199: 3.28 | H199: 0.44 | I199: 23.76 | J199: 115.00 | K199: 1/2017
D200: фрукты
D201: салат | E201: Салат Степной | F201: 60 | G201: 1.290 | H201: 4.960 | I201: 7.120 | J201: 78.300 | K201: 25/2004
D203: итого | F203: =SUM(F196:F202) -> 567 | G203: =SUM(G196:G202) -> 18.67 | H203: 21.32 | I203: 95.66 | J203: 649.30
A204: =A196 -> 2 | B204: =B196 -> 5 | C204: Обед | D204: закуска
D205: 1 блюдо
D206: 2 блюдо
D207: гарнир
D208: напиток
D209: хлеб бел.
D210: хлеб черн.
D213: итого | F213: =SUM(F204:F212) -> 0 | G213: =SUM(G204:G212) -> 0 | H213: 0 | I213: 0 | J213: 0
A214: =A196 -> 2 | B214: =B196 -> 5 | C214: Итого за день: | F214: =F203+F213 -> 567 | G214: =G203+G213 -> 18.67 | H214: 21.32 | I214: 95.66 | J214: 649.30
A215: 2 | B215: 6 | C215: Завтрак | D215: гор.блюдо
D216: гор.блюдо | E216: Гречка с фаршем и овощами | F216: 200 | G216: 21.75 | H216: 15.9 | I216: 39.1 | J216: 386.5 | K216: 139/2021
D217: гор.напиток | E217: Напиток из шиповника | F217: 200 | G217: 0.67 | H217: 0.27 | I217: 18.3 | J217: 78 | K217: 496/2017
D218: хлеб | E218: Хлеб пшен/хлеб ржан | F218: 50 | G218: 3.28 | H218: 0.44 | I218: 23.76 | J218: 115.00 | K218: 1/2017
D219: фрукты
D220: салат | E220: Винегрет овощной | F220: 60 | G220: 0.96 | H220: 3.72 | I220: 3.96 | J220: 52.8 | K220: 47/2021
D222: итого | F222: =SUM(F215:F221) -> 510 | G222: =SUM(G215:G221) -> 26.660 | H222: 20.330 | I222: 85.120 | J222: 632.300
A223: =A215 -> 2 | B223: =B215 -> 6 | C223: Обед | D223: закуска
D224: 1 блюдо
D225: 2 блюдо
D226: гарнир
D227: напиток
D228: хлеб бел.
D229: хлеб черн.
D232: итого | F232: =SUM(F223) -> 0 | G232: =SUM(G223) -> 0 | H232: 0 | I232: 0 | J232: 0
A233: =A215 -> 2 | B233: =B215 -> 6 | C233: Итого за день: | F233: =F222+F232 -> 510 | G233: =G222+G232 -> 26.66 | H233: 20.33 | I233: 85.12 | J233: 632.3
C234: Среднее значение за период:
